[Event "Titled Tuesday Blitz March 14 Late 2023"]
[White "Sabar, Ethmane Daouda"]
[Black "Zampronha, Wladimir Camilo"]
[WhiteFideId "19600097"]
[BlackFideId "2103087"]
[WhiteElo "1950"]
[BlackElo "2176"]
[Result "1-0"]
[Round "08"]
[TimeControl "180+2"]
[Date "2023.03.14"]
[WhiteClock "0:00:12"]
[BlackClock "0:00:16"]

1. e4 {[%clk 0:02:55]}  c5 {[%clk 0:03:00]} 2. a3 {[%clk 0:02:54]}  d5 {[%clk 0:02:59]} 3. exd5 {[%clk 0:02:50]}  Nf6 {[%clk 0:03:00]} 4. c4 {[%clk 0:02:45]}  e6 {[%clk 0:02:59]} 5. dxe6 {[%clk 0:02:44]}  Bxe6 {[%clk 0:03:00]} 6. Nf3 {[%clk 0:02:44]}  Nc6 {[%clk 0:03:00]} 7. Be2 {[%clk 0:02:43]}  Be7 {[%clk 0:02:58]} 8. O-O {[%clk 0:02:44]}  O-O {[%clk 0:02:59]} 9. b3 {[%clk 0:02:41]}  Nd4 {[%clk 0:02:56]} 10. Bb2 {[%clk 0:02:40]}  Nxe2+ {[%clk 0:02:51]} 11. Qxe2 {[%clk 0:02:39]}  Bf5 {[%clk 0:02:52]} 12. d4 {[%clk 0:02:32]}  cxd4 {[%clk 0:02:50]} 13. Nxd4 {[%clk 0:02:32]}  Bg4 {[%clk 0:02:42]} 14. Qc2 {[%clk 0:02:11]}  Qb6 {[%clk 0:02:33]} 15. h3 {[%clk 0:02:09]}  Bd7 {[%clk 0:02:25]} 16. Re1 {[%clk 0:02:04]}  Rfe8 {[%clk 0:02:25]} 17. Nd2 {[%clk 0:01:54]}  a5 {[%clk 0:02:19]} 18. N2f3 {[%clk 0:01:53]}  Bc5 {[%clk 0:01:57]} 19. Rxe8+ {[%clk 0:01:42]}  Rxe8 {[%clk 0:01:56]} 20. Rd1 {[%clk 0:01:35]}  Bc8 {[%clk 0:01:49]} 21. Bc3 {[%clk 0:01:13]}  Ne4 {[%clk 0:01:42]} 22. Bb2 {[%clk 0:01:10]}  Rd8 {[%clk 0:01:41]} 23. Qxe4 {[%clk 0:01:09]}  Qh6 {[%clk 0:01:28]} 24. Re1 {[%clk 0:00:55]}  Bd7 {[%clk 0:01:03]} 25. Nf5 {[%clk 0:00:54]}  Bxf5 {[%clk 0:01:00]} 26. Qxf5 {[%clk 0:00:55]}  Bf8 {[%clk 0:00:57]} 27. Ng5 {[%clk 0:00:44]}  Qh5 {[%clk 0:00:52]} 28. g4 {[%clk 0:00:41]}  Qg6 {[%clk 0:00:52]} 29. Qxg6 {[%clk 0:00:40]}  hxg6 {[%clk 0:00:52]} 30. Re2 {[%clk 0:00:34]}  Rd3 {[%clk 0:00:53]} 31. b4 {[%clk 0:00:32]}  axb4 {[%clk 0:00:50]} 32. axb4 {[%clk 0:00:33]}  Bxb4 {[%clk 0:00:47]} 33. Re8+ {[%clk 0:00:32]}  Bf8 {[%clk 0:00:47]} 34. Rb8 {[%clk 0:00:13]}  Rb3 {[%clk 0:00:45]} 35. Bd4 {[%clk 0:00:12]}  f6 {[%clk 0:00:17]} 36. Bc5 {[%clk 0:00:12]}  fxg5 {[%clk 0:00:16]} 37. Rxf8+ {[%clk 0:00:13]}  Kh7 {[%clk 0:00:16]} 38. Rf7 {[%clk 0:00:12]}  Rxh3 {[%clk 0:00:17]} 39. Bd4 {[%clk 0:00:11]}  Rd3 {[%clk 0:00:16]} 40. Rxg7+ {[%clk 0:00:10]}  Kh6 {[%clk 0:00:17]} 41. Rd7 {[%clk 0:00:11]}  Rd2 {[%clk 0:00:16]} 42. Bg7+ {[%clk 0:00:11]}  Kh7 {[%clk 0:00:16]} 43. Rxd2 {[%clk 0:00:12]} 1-0


[Site "https://www.chess.com"]

[Event "Titled Tuesday Blitz March 14 Late 2023"]
[White "Barash, Anton"]
[Black "Djordjevic, Dejan N"]
[WhiteFideId "30935229"]
[BlackFideId "913316"]
[WhiteElo "2331"]
[BlackElo "2261"]
[Result "0-1"]
[Round "08"]
[TimeControl "180+2"]
[Date "2023.03.14"]
[WhiteClock "0:00:01"]
[BlackClock "0:00:12"]

1. e4 {[%clk 0:02:51]}  c5 {[%clk 0:02:59]} 2. Nf3 {[%clk 0:02:50]}  Nc6 {[%clk 0:02:58]} 3. d4 {[%clk 0:02:51]}  cxd4 {[%clk 0:02:58]} 4. Nxd4 {[%clk 0:02:51]}  Nf6 {[%clk 0:02:57]} 5. Nc3 {[%clk 0:02:50]}  Qb6 {[%clk 0:02:57]} 6. Nb3 {[%clk 0:02:21]}  e6 {[%clk 0:02:57]} 7. Be2 {[%clk 0:02:16]}  a6 {[%clk 0:02:55]} 8. O-O {[%clk 0:02:14]}  Be7 {[%clk 0:02:54]} 9. a4 {[%clk 0:02:12]}  Qc7 {[%clk 0:02:50]} 10. a5 {[%clk 0:02:10]}  b5 {[%clk 0:02:46]} 11. axb6 {[%clk 0:02:07]}  Qxb6 {[%clk 0:02:46]} 12. Be3 {[%clk 0:02:00]}  Qb8 {[%clk 0:02:46]} 13. Ra4 {[%clk 0:01:48]}  O-O {[%clk 0:02:37]} 14. Qd2 {[%clk 0:01:38]}  d6 {[%clk 0:02:32]} 15. Rfa1 {[%clk 0:01:37]}  a5 {[%clk 0:02:18]} 16. f3 {[%clk 0:01:30]}  Bd8 {[%clk 0:02:05]} 17. Bb5 {[%clk 0:01:21]}  Bb7 {[%clk 0:02:00]} 18. Nd4 {[%clk 0:01:12]}  Nxd4 {[%clk 0:01:41]} 19. Bxd4 {[%clk 0:01:12]}  Ne8 {[%clk 0:01:29]} 20. Ne2 {[%clk 0:00:55]}  Ba6 {[%clk 0:01:21]} 21. Bxa6 {[%clk 0:00:51]}  Rxa6 {[%clk 0:01:21]} 22. b3 {[%clk 0:00:49]}  Rc6 {[%clk 0:01:18]} 23. Bc3 {[%clk 0:00:44]}  Qc8 {[%clk 0:01:13]} 24. Kh1 {[%clk 0:00:26]}  Bb6 {[%clk 0:01:02]} 25. R1a2 {[%clk 0:00:23]}  Rxc3 {[%clk 0:00:34]} 26. Nxc3 {[%clk 0:00:22]}  Qc5 {[%clk 0:00:28]} 27. Ne2 {[%clk 0:00:18]}  Nf6 {[%clk 0:00:20]} 28. h3 {[%clk 0:00:05]}  Qf2 {[%clk 0:00:15]} 29. Kh2 {[%clk 0:00:02]}  Bc7 {[%clk 0:00:13]} 30. c4 {[%clk 0:00:02]}  d5+ {[%clk 0:00:13]} 31. f4 {[%clk 0:00:01]}  dxe4 {[%clk 0:00:12]} 0-1


[Site "https://www.chess.com"]

[Event "Titled Tuesday Blitz March 14 Late 2023"]
[White "Friedel, Tom"]
[Black "Perske, Thore"]
[WhiteFideId "2002108"]
[BlackFideId "12902195"]
[WhiteElo "2265"]
[BlackElo "2336"]
[Result "0-1"]
[Round "08"]
[TimeControl "180+2"]
[Date "2023.03.14"]
[WhiteClock "0:00:08"]
[BlackClock "0:00:09"]

1. e4 {[%clk 0:02:57]}  e6 {[%clk 0:03:00]} 2. d4 {[%clk 0:02:56]}  d5 {[%clk 0:03:01]} 3. exd5 {[%clk 0:02:54]}  exd5 {[%clk 0:03:01]} 4. Bf4 {[%clk 0:02:54]}  Nc6 {[%clk 0:03:01]} 5. Nc3 {[%clk 0:02:53]}  Bb4 {[%clk 0:03:00]} 6. Nf3 {[%clk 0:02:44]}  Bg4 {[%clk 0:03:00]} 7. Be2 {[%clk 0:02:44]}  Nge7 {[%clk 0:02:57]} 8. O-O {[%clk 0:02:42]}  Qd7 {[%clk 0:02:55]} 9. h3 {[%clk 0:02:37]}  Bh5 {[%clk 0:02:55]} 10. Ne5 {[%clk 0:02:34]}  Bxe2 {[%clk 0:02:53]} 11. Nxe2 {[%clk 0:02:34]}  Nxe5 {[%clk 0:02:52]} 12. dxe5 {[%clk 0:02:21]}  O-O {[%clk 0:02:50]} 13. Bh2 {[%clk 0:02:14]}  c5 {[%clk 0:02:49]} 14. f4 {[%clk 0:02:10]}  d4 {[%clk 0:02:38]} 15. Qd3 {[%clk 0:02:09]}  Rac8 {[%clk 0:02:28]} 16. f5 {[%clk 0:01:54]}  c4 {[%clk 0:02:28]} 17. Qe4 {[%clk 0:01:52]}  d3 {[%clk 0:02:21]} 18. cxd3 {[%clk 0:01:28]}  Qxd3 {[%clk 0:02:02]} 19. Qxd3 {[%clk 0:01:23]}  cxd3 {[%clk 0:02:03]} 20. Ng3 {[%clk 0:01:15]}  Nc6 {[%clk 0:01:29]} 21. Ne4 {[%clk 0:01:11]}  Rfe8 {[%clk 0:01:27]} 22. f6 {[%clk 0:01:06]}  Nxe5 {[%clk 0:01:20]} 23. fxg7 {[%clk 0:01:06]}  Kxg7 {[%clk 0:01:15]} 24. Nf6 {[%clk 0:00:52]}  Re6 {[%clk 0:00:49]} 25. Nd5 {[%clk 0:00:52]}  Bc5+ {[%clk 0:00:45]} 26. Kh1 {[%clk 0:00:53]}  Rd8 {[%clk 0:00:44]} 27. Nf4 {[%clk 0:00:49]}  Ree8 {[%clk 0:00:41]} 28. Nh5+ {[%clk 0:00:43]}  Kf8 {[%clk 0:00:22]} 29. Rad1 {[%clk 0:00:39]}  Nc4 {[%clk 0:00:20]} 30. b3 {[%clk 0:00:24]}  Ne3 {[%clk 0:00:20]} 31. Nf6 {[%clk 0:00:22]}  Nxf1 {[%clk 0:00:16]} 32. Nxe8 {[%clk 0:00:22]}  Ne3 {[%clk 0:00:14]} 33. Rd2 {[%clk 0:00:13]}  Kxe8 {[%clk 0:00:14]} 34. Bg1 {[%clk 0:00:12]}  f5 {[%clk 0:00:11]} 35. b4 {[%clk 0:00:08]}  Bb6 {[%clk 0:00:10]} 36. a4 {[%clk 0:00:08]}  a6 {[%clk 0:00:11]} 37. a5 {[%clk 0:00:08]}  Ba7 {[%clk 0:00:11]} 38. Bf2 {[%clk 0:00:08]}  f4 {[%clk 0:00:10]} 39. g3 {[%clk 0:00:08]}  fxg3 {[%clk 0:00:10]} 40. Bxg3 {[%clk 0:00:09]}  Nf1 {[%clk 0:00:10]} 41. Rg2 {[%clk 0:00:07]}  Nxg3+ {[%clk 0:00:09]} 42. Rxg3 {[%clk 0:00:07]}  d2 {[%clk 0:00:09]} 43. Re3+ {[%clk 0:00:08]}  Bxe3 {[%clk 0:00:09]} 0-1


[Site "https://www.chess.com"]

[Event "Titled Tuesday Blitz March 14 Late 2023"]
[White "Cramling Bellon, Anna"]
[Black "Gharamian, Tigran"]
[WhiteFideId "32009232"]
[BlackFideId "13301527"]
[WhiteElo "1972"]
[BlackElo "2632"]
[Result "1-0"]
[Round "08"]
[TimeControl "180+2"]
[Date "2023.03.14"]
[WhiteClock "0:00:01"]
[BlackClock "0:00:03"]

1. d4 {[%clk 0:03:00]}  Nf6 {[%clk 0:02:57]} 2. c4 {[%clk 0:03:00]}  e6 {[%clk 0:02:57]} 3. Nc3 {[%clk 0:03:00]}  d5 {[%clk 0:02:58]} 4. cxd5 {[%clk 0:03:01]}  Nxd5 {[%clk 0:02:57]} 5. e4 {[%clk 0:02:59]}  Nxc3 {[%clk 0:02:58]} 6. bxc3 {[%clk 0:03:00]}  c5 {[%clk 0:02:58]} 7. Nf3 {[%clk 0:03:00]}  cxd4 {[%clk 0:02:58]} 8. cxd4 {[%clk 0:03:00]}  Bb4+ {[%clk 0:02:58]} 9. Bd2 {[%clk 0:03:00]}  Bxd2+ {[%clk 0:02:59]} 10. Qxd2 {[%clk 0:03:01]}  O-O {[%clk 0:02:58]} 11. Bd3 {[%clk 0:03:01]}  Nc6 {[%clk 0:02:55]} 12. e5 {[%clk 0:03:00]}  Qa5 {[%clk 0:02:23]} 13. Qxa5 {[%clk 0:02:46]}  Nxa5 {[%clk 0:02:24]} 14. O-O {[%clk 0:02:45]}  b6 {[%clk 0:02:19]} 15. Nd2 {[%clk 0:02:39]}  Rd8 {[%clk 0:02:13]} 16. Be4 {[%clk 0:02:10]}  Bb7 {[%clk 0:01:59]} 17. Bxb7 {[%clk 0:02:09]}  Nxb7 {[%clk 0:02:00]} 18. Nf3 {[%clk 0:02:02]}  Rac8 {[%clk 0:01:57]} 19. Rac1 {[%clk 0:02:01]}  Na5 {[%clk 0:01:55]} 20. Rfd1 {[%clk 0:01:44]}  Kf8 {[%clk 0:01:49]} 21. Kf1 {[%clk 0:01:43]}  Ke7 {[%clk 0:01:27]} 22. Ng5 {[%clk 0:01:36]}  h6 {[%clk 0:01:01]} 23. Ne4 {[%clk 0:01:36]}  Nc4 {[%clk 0:00:49]} 24. Ke2 {[%clk 0:01:31]}  f5 {[%clk 0:00:44]} 25. exf6+ {[%clk 0:01:30]}  gxf6 {[%clk 0:00:45]} 26. f4 {[%clk 0:01:19]}  Nd6 {[%clk 0:00:43]} 27. Kd3 {[%clk 0:01:09]}  Nf5 {[%clk 0:00:43]} 28. Rxc8 {[%clk 0:00:58]}  Rxc8 {[%clk 0:00:42]} 29. Nf2 {[%clk 0:00:30]}  b5 {[%clk 0:00:36]} 30. g4 {[%clk 0:00:30]}  Nd6 {[%clk 0:00:35]} 31. Re1 {[%clk 0:00:22]}  Kf7 {[%clk 0:00:32]} 32. Ne4 {[%clk 0:00:19]}  Nxe4 {[%clk 0:00:25]} 33. Rxe4 {[%clk 0:00:20]}  Rc1 {[%clk 0:00:25]} 34. Re2 {[%clk 0:00:09]}  Rf1 {[%clk 0:00:25]} 35. Ke4 {[%clk 0:00:09]}  Rd1 {[%clk 0:00:23]} 36. f5 {[%clk 0:00:08]}  exf5+ {[%clk 0:00:21]} 37. gxf5 {[%clk 0:00:09]}  a5 {[%clk 0:00:19]} 38. Rc2 {[%clk 0:00:07]}  Re1+ {[%clk 0:00:14]} 39. Kd5 {[%clk 0:00:06]}  b4 {[%clk 0:00:14]} 40. Rc7+ {[%clk 0:00:06]}  Ke8 {[%clk 0:00:14]} 41. Ra7 {[%clk 0:00:03]}  Re2 {[%clk 0:00:10]} 42. Rxa5 {[%clk 0:00:03]}  Rxh2 {[%clk 0:00:11]} 43. Ra6 {[%clk 0:00:03]}  Ke7 {[%clk 0:00:11]} 44. Re6+ {[%clk 0:00:03]}  Kf7 {[%clk 0:00:11]} 45. Rb6 {[%clk 0:00:03]}  Rb2 {[%clk 0:00:10]} 46. Rb7+ {[%clk 0:00:03]}  Kf8 {[%clk 0:00:10]} 47. Ke6 {[%clk 0:00:04]}  h5 {[%clk 0:00:10]} 48. Kxf6 {[%clk 0:00:04]}  Ke8 {[%clk 0:00:10]} 49. d5 {[%clk 0:00:04]}  Rd2 {[%clk 0:00:10]} 50. Rxb4 {[%clk 0:00:04]}  Rxd5 {[%clk 0:00:10]} 51. Kg5 {[%clk 0:00:04]}  Ra5 {[%clk 0:00:08]} 52. a4 {[%clk 0:00:03]}  Kf7 {[%clk 0:00:08]} 53. Rb7+ {[%clk 0:00:03]}  Kf8 {[%clk 0:00:07]} 54. Kf6 {[%clk 0:00:03]}  Ke8 {[%clk 0:00:06]} 55. Rb8+ {[%clk 0:00:03]}  Kd7 {[%clk 0:00:06]} 56. Rb4 {[%clk 0:00:03]}  Ke8 {[%clk 0:00:05]} 57. Kg5 {[%clk 0:00:03]}  Kf7 {[%clk 0:00:05]} 58. Rh4 {[%clk 0:00:03]}  Kg7 {[%clk 0:00:04]} 59. Rxh5 {[%clk 0:00:02]}  Rxa4 {[%clk 0:00:03]} 60. f6+ {[%clk 0:00:02]}  Kf7 {[%clk 0:00:03]} 61. Rh7+ {[%clk 0:00:03]}  Kg8 {[%clk 0:00:04]} 62. Ra7 {[%clk 0:00:02]}  Ra5+ {[%clk 0:00:03]} 63. Kg6 {[%clk 0:00:03]}  Rxa7 {[%clk 0:00:03]} 64. f7+ {[%clk 0:00:01]} 1-0


[Site "https://www.chess.com"]

[Event "Titled Tuesday Blitz March 14 Late 2023"]
[White "Jimenez, Joaquin"]
[Black "Eliteplayer3"]
[WhiteFideId "109860"]
[WhiteElo "2163"]
[BlackElo "2123"]
[Result "1-0"]
[Round "08"]
[TimeControl "180+2"]
[Date "2023.03.14"]
[WhiteClock "0:00:31"]
[BlackClock "0:00:27"]

1. e4 {[%clk 0:02:51]}  c6 {[%clk 0:03:00]} 2. c4 {[%clk 0:02:48]}  d5 {[%clk 0:03:00]} 3. exd5 {[%clk 0:02:43]}  cxd5 {[%clk 0:03:01]} 4. cxd5 {[%clk 0:02:43]}  Nf6 {[%clk 0:03:02]} 5. Nc3 {[%clk 0:02:44]}  Nxd5 {[%clk 0:03:00]} 6. Nf3 {[%clk 0:02:43]}  Nc6 {[%clk 0:02:58]} 7. Bb5 {[%clk 0:02:41]}  Nc7 {[%clk 0:02:48]} 8. Bxc6+ {[%clk 0:02:36]}  bxc6 {[%clk 0:02:48]} 9. Qa4 {[%clk 0:02:34]}  Bd7 {[%clk 0:02:47]} 10. d4 {[%clk 0:02:28]}  c5 {[%clk 0:02:39]} 11. Qd1 {[%clk 0:02:25]}  cxd4 {[%clk 0:02:38]} 12. Qxd4 {[%clk 0:02:23]}  e6 {[%clk 0:02:30]} 13. Ne5 {[%clk 0:02:12]}  f6 {[%clk 0:02:19]} 14. Nxd7 {[%clk 0:01:58]}  Qxd7 {[%clk 0:02:20]} 15. Qxd7+ {[%clk 0:01:56]}  Kxd7 {[%clk 0:02:20]} 16. Be3 {[%clk 0:01:56]}  Bb4 {[%clk 0:02:17]} 17. O-O-O+ {[%clk 0:01:51]}  Ke7 {[%clk 0:02:15]} 18. Ne4 {[%clk 0:01:49]}  Nd5 {[%clk 0:02:11]} 19. Bd4 {[%clk 0:01:44]}  Rhc8+ {[%clk 0:02:05]} 20. Kb1 {[%clk 0:01:44]}  Rab8 {[%clk 0:02:04]} 21. Rc1 {[%clk 0:01:37]}  a5 {[%clk 0:01:54]} 22. Rxc8 {[%clk 0:01:34]}  Rxc8 {[%clk 0:01:54]} 23. a3 {[%clk 0:01:33]}  Bd6 {[%clk 0:01:53]} 24. Rd1 {[%clk 0:01:25]}  Rc4 {[%clk 0:01:43]} 25. f3 {[%clk 0:01:19]}  e5 {[%clk 0:01:33]} 26. Bxe5 {[%clk 0:01:14]}  Bxe5 {[%clk 0:01:26]} 27. Rxd5 {[%clk 0:01:12]}  a4 {[%clk 0:01:17]} 28. Ra5 {[%clk 0:01:08]}  Bxh2 {[%clk 0:01:06]} 29. Ra7+ {[%clk 0:01:07]}  Bc7 {[%clk 0:01:04]} 30. Nc3 {[%clk 0:01:04]}  h5 {[%clk 0:01:00]} 31. Nxa4 {[%clk 0:01:01]}  g5 {[%clk 0:00:49]} 32. Nb6 {[%clk 0:00:57]}  Rc5 {[%clk 0:00:44]} 33. b4 {[%clk 0:00:56]}  Rc6 {[%clk 0:00:43]} 34. Nd5+ {[%clk 0:00:56]}  Kd6 {[%clk 0:00:41]} 35. Nxc7 {[%clk 0:00:48]}  Rxc7 {[%clk 0:00:42]} 36. Rxc7 {[%clk 0:00:39]}  Kxc7 {[%clk 0:00:40]} 37. Kc2 {[%clk 0:00:40]}  f5 {[%clk 0:00:20]} 38. Kd3 {[%clk 0:00:37]}  g4 {[%clk 0:00:19]} 39. fxg4 {[%clk 0:00:34]}  fxg4 {[%clk 0:00:19]} 40. Ke3 {[%clk 0:00:34]}  h4 {[%clk 0:00:16]} 41. Kf4 {[%clk 0:00:32]}  h3 {[%clk 0:00:16]} 42. gxh3 {[%clk 0:00:32]}  gxh3 {[%clk 0:00:17]} 43. Kg3 {[%clk 0:00:32]}  h2 {[%clk 0:00:18]} 44. Kxh2 {[%clk 0:00:32]}  Kb6 {[%clk 0:00:19]} 45. Kg3 {[%clk 0:00:32]}  Kb5 {[%clk 0:00:20]} 46. Kf4 {[%clk 0:00:33]}  Ka4 {[%clk 0:00:21]} 47. Ke4 {[%clk 0:00:33]}  Kb5 {[%clk 0:00:21]} 48. Kd4 {[%clk 0:00:33]}  Kb6 {[%clk 0:00:22]} 49. Kc4 {[%clk 0:00:33]}  Kc6 {[%clk 0:00:22]} 50. a4 {[%clk 0:00:33]}  Kb6 {[%clk 0:00:23]} 51. a5+ {[%clk 0:00:33]}  Ka7 {[%clk 0:00:24]} 52. Kc5 {[%clk 0:00:33]}  Kb7 {[%clk 0:00:24]} 53. b5 {[%clk 0:00:33]}  Ka7 {[%clk 0:00:25]} 54. a6 {[%clk 0:00:33]}  Kb8 {[%clk 0:00:25]} 55. Kc6 {[%clk 0:00:33]}  Ka8 {[%clk 0:00:26]} 56. b6 {[%clk 0:00:33]}  Kb8 {[%clk 0:00:26]} 57. b7 {[%clk 0:00:32]}  Ka7 {[%clk 0:00:25]} 58. Kc7 {[%clk 0:00:32]}  Kxa6 {[%clk 0:00:26]} 59. b8=Q {[%clk 0:00:32]}  Ka5 {[%clk 0:00:27]} 60. Qb3 {[%clk 0:00:31]}  Ka6 {[%clk 0:00:27]} 61. Qb6# {[%clk 0:00:31]} 1-0


[Site "https://www.chess.com"]

[Event "Titled Tuesday Blitz March 14 Late 2023"]
[White "Dodaro, Mattia"]
[Black "Simonovic, Miroslav"]
[WhiteFideId "28583400"]
[BlackFideId "919152"]
[WhiteElo "2413"]
[BlackElo "2042"]
[Result "1-0"]
[Round "08"]
[TimeControl "180+2"]
[Date "2023.03.14"]
[WhiteClock "0:00:05"]
[BlackClock "0:00:02"]

1. g4 {[%clk 0:02:51]}  c5 {[%clk 0:02:59]} 2. Bg2 {[%clk 0:02:51]}  Nc6 {[%clk 0:03:00]} 3. c4 {[%clk 0:02:52]}  g6 {[%clk 0:03:00]} 4. Nc3 {[%clk 0:02:52]}  Bg7 {[%clk 0:03:00]} 5. d3 {[%clk 0:02:52]}  e5 {[%clk 0:03:01]} 6. Nf3 {[%clk 0:02:51]}  Nge7 {[%clk 0:03:01]} 7. h4 {[%clk 0:02:51]}  h5 {[%clk 0:03:00]} 8. g5 {[%clk 0:02:49]}  d6 {[%clk 0:02:59]} 9. O-O {[%clk 0:02:48]}  Be6 {[%clk 0:02:59]} 10. Ne1 {[%clk 0:02:46]}  d5 {[%clk 0:02:58]} 11. cxd5 {[%clk 0:02:46]}  Nxd5 {[%clk 0:02:59]} 12. Nc2 {[%clk 0:02:46]}  Nxc3 {[%clk 0:02:53]} 13. bxc3 {[%clk 0:02:47]}  e4 {[%clk 0:02:42]} 14. Bxe4 {[%clk 0:02:42]}  Bxc3 {[%clk 0:02:42]} 15. Rb1 {[%clk 0:02:43]}  Bh3 {[%clk 0:02:37]} 16. Rxb7 {[%clk 0:02:38]}  Qc8 {[%clk 0:02:26]} 17. Rb5 {[%clk 0:01:29]}  O-O {[%clk 0:02:07]} 18. Rxc5 {[%clk 0:01:23]}  Qg4+ {[%clk 0:02:06]} 19. Kh2 {[%clk 0:01:23]}  Qxh4 {[%clk 0:02:01]} 20. Kg1 {[%clk 0:01:15]}  Bxf1 {[%clk 0:01:32]} 21. Qxf1 {[%clk 0:01:14]}  Be5 {[%clk 0:01:27]} 22. Qg2 {[%clk 0:01:09]}  Nd4 {[%clk 0:01:19]} 23. Bxa8 {[%clk 0:00:54]}  Nxe2+ {[%clk 0:00:52]} 24. Kf1 {[%clk 0:00:51]}  Nxc1 {[%clk 0:00:44]} 25. Rxe5 {[%clk 0:00:47]}  Nxd3 {[%clk 0:00:36]} 26. Re4 {[%clk 0:00:38]}  Qxf2+ {[%clk 0:00:23]} 27. Qxf2 {[%clk 0:00:37]}  Nxf2 {[%clk 0:00:24]} 28. Kxf2 {[%clk 0:00:32]}  Rxa8 {[%clk 0:00:25]} 29. Ne3 {[%clk 0:00:31]}  Rb8 {[%clk 0:00:23]} 30. Nd5 {[%clk 0:00:31]}  Rb5 {[%clk 0:00:19]} 31. Nf6+ {[%clk 0:00:30]}  Kg7 {[%clk 0:00:19]} 32. Ne8+ {[%clk 0:00:19]}  Kf8 {[%clk 0:00:19]} 33. Nd6 {[%clk 0:00:15]}  Rxg5 {[%clk 0:00:18]} 34. Rf4 {[%clk 0:00:13]}  f5 {[%clk 0:00:18]} 35. a4 {[%clk 0:00:10]}  Ke7 {[%clk 0:00:10]} 36. Nc8+ {[%clk 0:00:10]}  Ke6 {[%clk 0:00:08]} 37. Nxa7 {[%clk 0:00:11]}  Ke5 {[%clk 0:00:08]} 38. Rf3 {[%clk 0:00:10]}  Rg4 {[%clk 0:00:09]} 39. a5 {[%clk 0:00:08]}  Ra4 {[%clk 0:00:07]} 40. Rg3 {[%clk 0:00:07]}  h4 {[%clk 0:00:02]} 41. Rxg6 {[%clk 0:00:06]}  Kf4 {[%clk 0:00:03]} 42. Nc6 {[%clk 0:00:05]}  h3 {[%clk 0:00:02]} 43. Rh6 {[%clk 0:00:04]}  Ra2+ {[%clk 0:00:02]} 44. Kg1 {[%clk 0:00:05]} 1-0


[Site "https://www.chess.com"]

[Event "Titled Tuesday Blitz March 14 Late 2023"]
[White "Sarkar, Justin"]
[Black "Torres Dominguez, David"]
[WhiteFideId "2010011"]
[BlackFideId "2220857"]
[WhiteElo "2189"]
[BlackElo "1999"]
[Result "0-1"]
[Round "08"]
[TimeControl "180+2"]
[Date "2023.03.14"]
[WhiteClock "0:00:01"]
[BlackClock "0:00:46"]

1. d4 {[%clk 0:02:43]}  e5 {[%clk 0:03:00]} 2. dxe5 {[%clk 0:02:41]}  d6 {[%clk 0:03:00]} 3. Nf3 {[%clk 0:02:38]}  Bg4 {[%clk 0:02:59]} 4. Bg5 {[%clk 0:02:29]}  Qd7 {[%clk 0:02:59]} 5. exd6 {[%clk 0:02:17]}  Bxd6 {[%clk 0:02:58]} 6. Nc3 {[%clk 0:02:17]}  Nc6 {[%clk 0:02:57]} 7. Qd2 {[%clk 0:02:12]}  f6 {[%clk 0:02:55]} 8. Bf4 {[%clk 0:02:09]}  O-O-O {[%clk 0:02:44]} 9. Bxd6 {[%clk 0:02:06]}  Bxf3 {[%clk 0:02:17]} 10. exf3 {[%clk 0:01:45]}  Qe6+ {[%clk 0:02:16]} 11. Qe3 {[%clk 0:01:26]}  Rxd6 {[%clk 0:02:13]} 12. Qxe6+ {[%clk 0:00:52]}  Rxe6+ {[%clk 0:02:13]} 13. Be2 {[%clk 0:00:52]}  Nd4 {[%clk 0:02:07]} 14. Kd2 {[%clk 0:00:51]}  Nh6 {[%clk 0:02:00]} 15. Bd3 {[%clk 0:00:47]}  Rd8 {[%clk 0:01:55]} 16. Rae1 {[%clk 0:00:42]}  Red6 {[%clk 0:01:55]} 17. Kc1 {[%clk 0:00:40]}  g6 {[%clk 0:01:43]} 18. Re7 {[%clk 0:00:36]}  R6d7 {[%clk 0:01:41]} 19. Rhe1 {[%clk 0:00:35]}  Nhf5 {[%clk 0:01:40]} 20. Rxd7 {[%clk 0:00:32]}  Rxd7 {[%clk 0:01:38]} 21. Re8+ {[%clk 0:00:28]}  Rd8 {[%clk 0:01:37]} 22. Rxd8+ {[%clk 0:00:27]}  Kxd8 {[%clk 0:01:37]} 23. Nd5 {[%clk 0:00:27]}  Nh4 {[%clk 0:01:29]} 24. Bf1 {[%clk 0:00:22]}  f5 {[%clk 0:01:25]} 25. f4 {[%clk 0:00:16]}  c6 {[%clk 0:01:20]} 26. Ne3 {[%clk 0:00:16]}  Ne6 {[%clk 0:01:16]} 27. g3 {[%clk 0:00:09]}  Nf3 {[%clk 0:01:16]} 28. h4 {[%clk 0:00:09]}  Nfd4 {[%clk 0:01:06]} 29. c3 {[%clk 0:00:02]}  Nb5 {[%clk 0:01:03]} 30. h5 {[%clk 0:00:02]}  Nd6 {[%clk 0:01:01]} 31. hxg6 {[%clk 0:00:02]}  hxg6 {[%clk 0:01:01]} 32. Bd3 {[%clk 0:00:02]}  Ke7 {[%clk 0:01:00]} 33. f3 {[%clk 0:00:03]}  Kf6 {[%clk 0:00:55]} 34. Kd2 {[%clk 0:00:03]}  Nc5 {[%clk 0:00:54]} 35. Be2 {[%clk 0:00:03]}  Na4 {[%clk 0:00:52]} 36. Kc2 {[%clk 0:00:03]}  Nb6 {[%clk 0:00:49]} 37. b3 {[%clk 0:00:01]}  Nd7 {[%clk 0:00:47]} 38. Nc4 {[%clk 0:00:01]}  Nxc4 {[%clk 0:00:46]} 0-1


[Site "https://www.chess.com"]